fUSD/lending_fUSD_20250219
["ID","MTS","AMOUNT","RATE_DAILY","PERIOD"]
[353578922,1739933447734,-150.0,0.0001362,2]
[353578923,1739933447743,-150.0,0.00013622,2]
[353578924,1739933447753,-150.0,0.00013623,2]
[353578925,1739933447762,-150.0,0.00013624,2]
[353578926,1739933447772,-150.0,0.00013629,2]
[353578927,1739933447782,-150.0,0.00013629,2]
[353578928,1739933447792,-150.0,0.00013631,2]
[353578929,1739933447802,-150.0,0.00013633,2]
[353578930,1739933447811,-150.55743084,0.00013634,2]
[353578931,1739933447821,-151.0,0.00013636,2]
[353578932,1739933447830,-150.0,0.00013636,2]
[353578933,1739933447840,-1000.0,0.00013637,2]
[353578934,1739933447850,-151.0,0.00013638,2]
[353578935,1739933447859,-267.10256,0.00013638,2]
[353578936,1739933447876,-267.10256,0.00013638,2]
[353578937,1739933447897,-150.87993892,0.00013639,2]
[353578938,1739933447914,-150.0,0.0001364,2]
[353578939,1739933447924,-1000.0,0.00013643,2]
[353578940,1739933447933,-927.31769076,0.0001365,2]
[353578941,1739933447941,-150.0,0.00013653,2]
[353578942,1739933447953,-150.0,0.00013653,2]
[353578943,1739933447963,-150.0,0.00013655,2]
[353578944,1739933447973,-151.15693201,0.00013655,2]
[353578945,1739933447982,-150.0,0.00013658,2]
[353578946,1739933447992,-1000.0,0.0001366,2]
[353578947,1739933448002,-1000.0,0.00013661,2]
[353578948,1739933448012,-150.0,0.00013663,2]
[353578949,1739933448022,-150.0,0.00013669,2]
[353578950,1739933448031,-150.0,0.00013673,2]
[353578951,1739933448040,-150.0,0.00013674,2]
[353578952,1739933448049,-150.0,0.00013676,2]
[353578953,1739933448057,-1000.0,0.00013677,2]
[353578954,1739933448067,-1000.0,0.00013678,2]
[353578955,1739933448079,-150.0,0.00013679,2]
[353578956,1739933448088,-150.0,0.00013681,2]
[353578957,1739933448098,-150.0,0.00013684,2]
[353578958,1739933448107,-150.0,0.00013684,2]
[353578959,1739933448117,-151.0,0.0001369,2]
[353578960,1739933448127,-153.506309,0.0001369,2]
[353578961,1739933448136,-1873.568483,0.0001369,2]
[353578962,1739933448145,-456.934833,0.0001369,2]
[353578963,1739933448155,-1873.568483,0.0001369,2]
[353578964,1739933448165,-456.934833,0.0001369,2]
[353578965,1739933448175,-150.0,0.00013691,2]
[353578966,1739933448185,-150.0,0.00013692,2]
[353578967,1739933448196,-150.0,0.00013692,2]
[353578968,1739933448206,-1000.0,0.00013693,2]
[353578969,1739933448216,-150.0,0.00013693,2]
[353578970,1739933448227,-500.0,0.00013699,2]
[353578971,1739933448238,-500.0,0.00013699,2]
[353578972,1739933448249,-500.0,0.00013699,2]
[353578973,1739933448259,-151.0,0.00013699,2]
[353578974,1739933448270,-169.99,0.00013699,2]
[353578975,1739933448282,-200.0,0.00013699,2]
[353578976,1739933448293,-1000.0,0.00013702,2]
[353578977,1739933448305,-150.0,0.00013706,2]
[353578978,1739933448316,-150.0,0.00013709,2]
[353578979,1739933448328,-150.0,0.00013713,2]
[353578980,1739933448339,-150.0,0.00013718,2]
[353578981,1739933448348,-150.0,0.00013718,2]
[353578982,1739933448357,-150.0,0.00013719,2]
[353578983,1739933448366,-150.0,0.0001372,2]
[353578984,1739933448376,-150.0,0.00013724,2]
[353578985,1739933448388,-150.0,0.00013726,2]
[353578986,1739933448399,-150.0,0.00013726,2]
[353578987,1739933448410,-150.0,0.00013729,2]
[353578988,1739933448422,-150.0,0.00013734,2]
[353578989,1739933448433,-150.0,0.00013736,2]
[353578990,1739933448444,-150.0,0.00013739,2]
[353578991,1739933448456,-150.0,0.0001374,2]
[353578992,1739933448468,-150.0,0.0001374,2]
[353578993,1739933448479,-1000.0,0.00013741,2]
[353578994,1739933448491,-500.0,0.00013743,2]
[353578995,1739933448502,-324.67116022,0.00013743,2]
[353578996,1739933448514,-192.48061467,0.00013743,2]
[353578997,1739933448525,-300.0,0.00013744,2]
[353578998,1739933448536,-150.0,0.00013745,2]
[353578999,1739933448547,-1000.0,0.00013745,2]
[353579000,1739933448558,-150.0,0.00013747,2]
[353579001,1739933448570,-150.0,0.00013749,2]
[353579002,1739933448581,-150.0,0.00013751,2]
[353579003,1739933448593,-1000.0,0.00013754,2]
[353579004,1739933448604,-150.0,0.00013757,2]
[353579005,1739933448616,-1000.0,0.00013758,2]
[353579006,1739933448627,-150.0,0.00013759,2]
[353579007,1739933448639,-150.0,0.00013759,2]
[353579008,1739933448652,-150.0,0.0001376,2]
[353579009,1739933448664,-150.0,0.0001376,2]
[353579010,1739933448677,-150.0,0.00013763,2]
[353579011,1739933448689,-150.0,0.00013763,2]
[353579012,1739933448701,-150.0,0.00013763,2]
[353579013,1739933448713,-150.0,0.00013764,2]
[353579014,1739933448725,-150.0,0.00013765,2]
[353579015,1739933448737,-1000.0,0.00013767,2]
[353579016,1739933448749,-150.0,0.00013772,2]
[353579017,1739933448761,-150.0,0.00013785,2]
[353579018,1739933448772,-150.0,0.00013786,2]
[353579019,1739933448783,-1000.0,0.00013786,2]
[353579020,1739933448793,-151.0,0.00013787,2]
[353579021,1739933448804,-278.334688,0.00013787,2]
[353579022,1739933448815,-151.0,0.00013787,2]
[353579023,1739933448825,-151.0,0.00013787,2]
[353579024,1739933448836,-1347.5751,0.00013787,2]
[353579025,1739933448847,-1347.5751,0.00013787,2]
[353579026,1739933448858,-151.0,0.00013787,2]
[353579027,1739933448869,-1873.568483,0.00013787,2]
[353579028,1739933448881,-456.934833,0.00013787,2]
[353579029,1739933448892,-1873.568488,0.00013787,2]
[353579030,1739933448903,-456.93483,0.00013787,2]
[353579031,1739933448914,-1000.0,0.00013787,2]
[353579032,1739933448926,-225.931648,0.00013789,2]
[353579033,1739933448938,-225.931648,0.00013789,2]
[353579034,1739933448950,-151.0,0.00013789,2]
[353579035,1739933448962,-151.0,0.00013789,2]
[353579036,1739933448976,-407.378973,0.00013789,2]
[353579037,1739933448992,-407.378973,0.00013789,2]
[353579038,1739933449005,-150.0,0.00013789,2]
[353579039,1739933449017,-150.0,0.0001379,2]
[353579040,1739933449029,-150.0,0.00013792,2]
[353579041,1739933449042,-150.0,0.00013792,2]
[353579042,1739933449054,-1000.0,0.00013795,2]
[353579043,1739933449066,-1000.0,0.00013797,2]
[353579044,1739933449080,-150.0,0.00013798,2]
[353579045,1739933449092,-2500.0,0.000138,2]
[353579046,1739933449104,-2500.0,0.000138,2]
[353579047,1739933449115,-151.0,0.000138,2]
[353579048,1739933449127,-151.0,0.000138,2]
[353579049,1739933449138,-151.0,0.000138,2]
[353579050,1739933449155,-151.0,0.000138,2]
[353579051,1739933449168,-449.444709,0.000138,2]
[353579052,1739933449180,-449.444714,0.000138,2]
[353579053,1739933449193,-531.978598,0.000138,2]
[353579054,1739933449205,-531.978603,0.000138,2]
[353579055,1739933449218,-151.0,0.000138,2]
[353579056,1739933449230,-1004.0,0.000138,2]
[353579057,1739933449243,-150.0,0.000138,2]
[353579058,1739933449255,-150.0,0.00013804,2]
[353579059,1739933449267,-150.0,0.00013807,2]
[353579060,1739933449281,-1000.0,0.00013807,2]
[353579061,1739933449294,-1000.0,0.00013807,2]
[353579062,1739933449306,-1280.871,0.00013809,2]
[353579063,1739933449318,-2026.0,0.00013809,2]
[353579064,1739933449330,-152.028,0.00013809,2]
[353579065,1739933449343,-150.663,0.00013809,2]
[353579066,1739933449355,-569.0,0.00013809,2]
[353579067,1739933449366,-639.0,0.00013809,2]
[353579068,1739933449378,-1877.976,0.00013809,2]
[353579069,1739933449390,-911.179,0.00013809,2]
[353579070,1739933449402,-789.0,0.00013809,2]
[353579071,1739933449415,-1266.0,0.00013809,2]
[353579072,1739933449428,-540.4,0.00013809,2]
[353579073,1739933449439,-4030.0,0.00013809,2]
[353579074,1739933449452,-3918.0,0.00013809,2]
[353579075,1739933449464,-152.57,0.00013809,2]
[353579076,1739933449476,-1009.0,0.00013809,2]
[353579077,1739933449488,-150.0,0.00013814,2]
[353579078,1739933449500,-1000.0,0.00013818,2]
[353579079,1739933449515,-1036.34115462,0.00013819,2]
[353579080,1739933449536,-150.0,0.00013821,2]
[353579081,1739933449552,-150.0,0.00013822,2]
[353579082,1739933449565,-150.0,0.00013824,2]
[353579083,1739933449583,-150.0,0.00013828,2]
[353579084,1739933449600,-150.0,0.00013828,2]
[353579085,1739933449617,-150.0,0.00013829,2]
[353579086,1739933449635,-257.15387611,0.0001383,2]
[353579087,1739933449650,-1000.0,0.00013832,2]
[353579088,1739933449663,-150.0,0.00013833,2]
[353579089,1739933449681,-150.0,0.00013838,2]
[353579090,1739933449697,-1000.0,0.00013838,2]
[353579091,1739933449714,-150.0,0.00013841,2]
[353579092,1739933449732,-150.0,0.00013844,2]
[353579093,1739933449748,-150.0,0.00013847,2]
[353579094,1739933449764,-1000.0,0.00013848,2]
[353579095,1739933449781,-150.0,0.00013849,2]
[353579096,1739933449796,-1000.0,0.00013853,2]
[353579097,1739933449812,-150.0,0.0001386,2]
[353579098,1739933449828,-150.0,0.00013863,2]
[353579099,1739933449844,-150.0,0.00013868,2]
[353579100,1739933449858,-150.0,0.00013871,2]
[353579101,1739933449871,-150.0,0.00013879,2]
[353579102,1739933449889,-150.0,0.00013888,2]
[353579103,1739933449904,-171.298769,0.0001389,2]
[353579104,1739933449915,-151.0,0.0001389,2]
[353579105,1739933449928,-151.0,0.0001389,2]
[353579106,1739933449945,-151.250533,0.0001389,2]
[353579107,1739933449960,-151.0,0.0001389,2]
[353579108,1739933449976,-151.0,0.0001389,2]
[353579109,1739933449995,-187.03711,0.0001389,2]
[353579110,1739933450014,-151.0,0.0001389,2]
[353579111,1739933450027,-151.0,0.0001389,2]
[353579112,1739933450040,-151.0,0.0001389,2]
[353579113,1739933450053,-151.0,0.0001389,2]
[353579114,1739933450067,-151.0,0.0001389,2]
[353579115,1739933450086,-183.052655,0.0001389,2]
[353579116,1739933450100,-183.052655,0.0001389,2]
[353579117,1739933450113,-1107.91682797,0.000139,2]
[353579118,1739933450128,-1000.0,0.000139,2]
[353579119,1739933450140,-284.9061,0.000139,2]
[353579120,1739933450154,-150.0,0.000139,2]
[353579121,1739933450169,-500.0,0.000139,2]
[353579122,1739933450182,-1025.0,0.000139,2]
[353579123,1739933450195,-21631.12598446,0.0001391,2]
[353579124,1739933450209,-151.0,0.0001391,2]
[353579125,1739933450222,-151.0,0.0001391,2]
[353579126,1739933450234,-151.0,0.0001391,2]
[353579127,1739933450252,-151.0,0.0001391,2]
[353579128,1739933450265,-151.0,0.0001391,2]
[353579129,1739933450277,-151.0,0.0001391,2]
[353579130,1739933450290,-1347.5751,0.0001391,2]
[353579131,1739933450303,-151.0,0.0001391,2]
[353579132,1739933450316,-1347.5751,0.0001391,2]
[353579133,1739933450330,-150.0,0.00013927,2]
[353579134,1739933450342,-500.0,0.00013927,2]
[353579135,1739933450354,-1025.0,0.00013927,2]
[353579136,1739933450368,-200.28038305,0.00013955,2]
[353579137,1739933450382,-500.0,0.00013955,2]
[353579138,1739933450395,-1025.0,0.00013955,2]
[353579139,1739933450408,-500.0,0.00013982,2]
[353579140,1739933450420,-1025.0,0.00013982,2]
[353579141,1739933450433,-1000.0,0.00014,4]
[353579142,1739933450446,-1000.0,0.00014,2]
[353579143,1739933450459,-500.0,0.0001401,2]
[353579144,1739933450471,-1025.0,0.0001401,2]
[353579145,1739933450484,-500.67260556,0.00014033,2]
[353579146,1739933450497,-500.39260368,0.00014033,2]
[353579147,1739933450509,-500.0,0.00014037,2]
[353579148,1739933450522,-1025.0,0.00014037,2]
[353579149,1739933450534,-500.0,0.00014038,2]
[353579150,1739933450548,-225.931648,0.00014038,2]
[353579151,1739933450561,-225.931648,0.00014038,2]
[353579152,1739933450574,-151.0,0.00014038,2]
[353579153,1739933450586,-407.378973,0.00014038,2]
[353579154,1739933450598,-407.378973,0.00014038,2]
[353579155,1739933450611,-151.09158,0.00014039,2]
[353579156,1739933450623,-1840.013856,0.00014039,2]
[353579157,1739933450636,-1840.013856,0.00014039,2]
[353579158,1739933450649,-151.0,0.00014039,2]
[353579159,1739933450661,-2238.45688866,0.00014039,2]
[353579160,1739933450674,-500.0,0.00014064,2]
[353579161,1739933450686,-1025.0,0.00014064,2]
[353579162,1739933450698,-500.0,0.00014092,2]
[353579163,1739933450712,-1025.0,0.00014092,2]
[353579164,1739933450724,-500.0,0.00014099,2]
[353579165,1739933450737,-1000.0,0.00014099,2]
[353579166,1739933450750,-460.68491,0.000141,2]
[353579167,1739933450762,-311643.68191073,0.000141,3]
[353579168,1739933450775,-151.421418,0.000141,2]
[353579169,1739933450787,-151.0,0.000141,2]
[353579170,1739933450799,-151.909686,0.000141,2]
[353579171,1739933450811,-151.0,0.000141,2]
[353579172,1739933450824,-151.0,0.000141,2]
[353579173,1739933450836,-151.0,0.000141,2]
[353579174,1739933450848,-151.0,0.000141,2]
[353579175,1739933450860,-202.706815,0.000141,2]
[353579176,1739933450872,-153.056015,0.000141,2]
[353579177,1739933450884,-151.0,0.000141,2]
[353579178,1739933450897,-151.0,0.000141,2]
[353579179,1739933450910,-229.519431,0.000141,2]
[353579180,1739933450923,-286.085751,0.000141,2]
[353579181,1739933450935,-286.085751,0.000141,2]
[353579182,1739933450948,-343.242218,0.000141,2]
[353579183,1739933450961,-151.0,0.000141,2]
[353579184,1739933450974,-343.242218,0.000141,2]
[353579185,1739933450986,-151.0,0.000141,2]
[353579186,1739933450999,-1840.013856,0.000141,2]
[353579187,1739933451012,-1840.013856,0.000141,2]
[353579188,1739933451025,-151.0,0.000141,2]
[353579189,1739933451037,-151.0,0.000141,2]
[353579190,1739933451049,-151.0,0.000141,2]
[353579191,1739933451062,-151.0,0.000141,2]
[353579192,1739933451075,-225.931648,0.000141,2]
[353579193,1739933451091,-225.931648,0.000141,2]
[353579194,1739933451104,-151.0,0.000141,2]
[353579195,1739933451117,-151.0,0.000141,2]
[353579196,1739933451131,-151.0,0.000141,2]
[353579197,1739933451144,-1347.5751,0.000141,2]
[353579198,1739933451156,-151.0,0.000141,2]
[353579199,1739933451170,-1347.5751,0.000141,2]
[353579200,1739933451183,-407.378973,0.000141,2]
[353579201,1739933451196,-407.378973,0.000141,2]
[353579202,1739933451210,-1000.0,0.000141,2]
[353579203,1739933451224,-152.0,0.00014118,3]
[353579204,1739933451236,-500.0,0.00014119,2]
[353579205,1739933451248,-1025.0,0.00014119,2]
[353579206,1739933451261,-937.32149828,0.00014122,2]
[353579207,1739933451274,-500.0,0.00014147,2]
[353579208,1739933451287,-1025.0,0.00014147,2]
[353579209,1739933451300,-151.0,0.00014151,2]
[353579210,1739933451312,-151.0,0.00014151,2]
[353579211,1739933451325,-151.0,0.00014151,2]
[353579212,1739933451337,-151.0,0.00014151,2]
[353579213,1739933451349,-500.0,0.00014174,2]
[353579214,1739933451361,-1025.0,0.00014174,2]
[353579215,1739933451375,-151.0,0.00014182,2]
[353579216,1739933451386,-151.0,0.00014182,2]
[353579217,1739933451398,-151.0,0.00014182,2]
[353579218,1739933451411,-151.0,0.00014182,2]
[353579219,1739933451423,-151.0,0.00014182,2]
[353579220,1739933451435,-151.0,0.00014182,2]
[353579221,1739933451447,-151.0,0.00014182,2]
[353579222,1739933451459,-151.0,0.00014182,2]
[353579223,1739933451471,-151.0,0.00014182,2]
[353579224,1739933451483,-151.0,0.00014182,2]
[353579225,1739933451495,-151.0,0.00014182,2]
[353579226,1739933451506,-151.0,0.00014182,2]
[353579227,1739933451519,-151.0,0.00014182,2]
[353579228,1739933451531,-151.0,0.00014182,2]
[353579229,1739933451543,-151.0,0.00014182,2]
[353579230,1739933451556,-151.0,0.00014182,2]
[353579231,1739933451568,-151.0,0.00014182,2]
[353579232,1739933451580,-172.100283,0.00014182,2]
[353579233,1739933451591,-151.0,0.00014182,2]
[353579234,1739933451603,-151.0,0.00014182,2]
[353579235,1739933451615,-151.0,0.00014182,2]
[353579236,1739933451627,-151.0,0.00014182,2]
[353579237,1739933451639,-151.0,0.00014182,2]
[353579238,1739933451651,-151.0,0.00014182,2]
[353579239,1739933451663,-183.052655,0.00014182,2]
[353579240,1739933451675,-183.052655,0.00014182,2]
[353579241,1739933451687,-1440.35481404,0.00014183,2]
[353579242,1739933451698,-500.0,0.00014201,2]
[353579243,1739933451710,-1025.0,0.00014201,2]
[353579244,1739933451723,-473.88,0.00014219,2]
[353579245,1739933451734,-500.0,0.00014229,2]
[353579246,1739933451746,-1025.0,0.00014229,2]
[353579247,1739933451759,-500.0,0.00014236,2]
[353579248,1739933451770,-500.0,0.00014256,2]
[353579249,1739933451783,-1025.0,0.00014256,2]
[353579250,1739933451795,-151.0,0.00014257,2]
[353579251,1739933451807,-151.0,0.00014257,2]
[353579252,1739933451819,-151.0,0.00014257,2]
[353579253,1739933451831,-518.48,0.00014257,2]
[353579254,1739933451844,-151.0,0.0001428,2]
[353579255,1739933451855,-151.0,0.00014282,2]
[353579256,1739933451867,-151.0,0.00014282,2]
[353579257,1739933452179,-151.0,0.00014282,2]
[353579258,1739933452212,-151.0,0.00014282,2]
[353579259,1739933452221,-151.0,0.00014282,2]
[353579260,1739933452231,-184.279084,0.00014282,2]
[353579261,1739933452240,-189.562077,0.00014282,2]
[353579262,1739933452250,-151.0,0.00014282,2]
[353579263,1739933452259,-189.562077,0.00014282,2]
[353579264,1739933452268,-151.0,0.00014282,2]
[353579265,1739933452278,-151.0,0.00014282,2]
[353579266,1739933452289,-151.0,0.00014282,2]
[353579267,1739933452299,-151.0,0.00014282,2]
[353579268,1739933452308,-151.0,0.00014282,2]
[353579269,1739933452318,-220.961458,0.00014282,2]
[353579270,1739933452328,-286.085751,0.00014282,2]
[353579271,1739933452337,-286.085751,0.00014282,2]
[353579272,1739933452346,-151.0,0.00014282,2]
[353579273,1739933452355,-151.0,0.00014282,2]
[353579274,1739933452364,-1840.013856,0.00014282,2]
[353579275,1739933452374,-1840.013856,0.00014282,2]
[353579276,1739933452383,-151.0,0.00014282,2]
[353579277,1739933452392,-151.0,0.00014282,2]
[353579278,1739933452401,-151.0,0.00014282,2]
[353579279,1739933452411,-225.931648,0.00014282,2]
[353579280,1739933452421,-225.931648,0.00014282,2]
[353579281,1739933452430,-151.0,0.00014282,2]
[353579282,1739933452439,-151.0,0.00014282,2]
[353579283,1739933452449,-151.0,0.00014282,2]
[353579284,1739933452459,-1347.5751,0.00014282,2]
[353579285,1739933452468,-229.649032,0.00014282,2]
[353579286,1739933452478,-1347.5751,0.00014282,2]
[353579287,1739933452488,-407.378973,0.00014282,2]
[353579288,1739933452497,-407.378973,0.00014282,2]
[353579289,1739933452508,-500.0,0.00014284,2]
[353579290,1739933452518,-1025.0,0.00014284,2]
[353579291,1739933452529,-418.8324663,0.00014291,2]
[353579292,1739933452538,-500.0,0.00014311,2]
[353579293,1739933452548,-1025.0,0.00014311,2]
[353579294,1739933452558,-607.56761845,0.00014338,2]
[353579295,1739933452567,-1025.0,0.00014338,2]
[353579296,1739933452576,-151.0,0.0001434,2]
[353579297,1739933452586,-152.0,0.0001434,4]
[353579298,1739933452595,-180.769095,0.00014343,2]
[353579299,1739933452605,-514.82219493,0.0001435,2]
[353579300,1739933452615,-1025.0,0.00014366,2]
[353579301,1739933452624,-500.0,0.00014367,2]
[353579302,1739933452633,-500.0,0.00014373,2]
[353579303,1739933452642,-1000.0,0.0001438,2]
[353579304,1739933452651,-151.0,0.00014393,2]
[353579305,1739933452661,-151.0,0.00014393,2]
[353579306,1739933452670,-1025.0,0.00014393,2]
[353579307,1739933452679,-151.0,0.000144,2]
[353579308,1739933452688,-151.0,0.000144,2]
[353579309,1739933452697,-151.0,0.000144,2]
[353579310,1739933452708,-229.519431,0.000144,2]
[353579311,1739933452717,-229.519431,0.000144,2]
[353579312,1739933452727,-343.242218,0.000144,2]
[353579313,1739933452735,-343.242218,0.000144,2]
[353579314,1739933452744,-151.268639,0.000144,2]
[353579315,1739933452753,-151.327923,0.00014415,2]
[353579316,1739933452763,-151.0,0.00014415,2]
[353579317,1739933452772,-151.0,0.00014415,2]
[353579318,1739933452781,-151.0,0.00014415,2]
[353579319,1739933452790,-183.052655,0.00014415,2]
[353579320,1739933452799,-183.052655,0.00014415,2]
[353579321,1739933452808,-1042.43823541,0.00014421,2]
[353579322,1739933452817,-530.29166191,0.00014455,2]
[353579323,1739933452826,-500.0,0.00014498,2]
[353579324,1739933452835,-1000.0,0.00014499,2]
[353579325,1739933452845,-439690.88927392,0.000145,2]
[353579326,1739933452854,-151.0,0.000145,2]
[353579327,1739933452863,-151.0,0.000145,2]
[353579328,1739933452873,-151.0,0.000145,2]
[353579329,1739933452882,-229.519431,0.000145,2]
[353579330,1739933452892,-229.519431,0.000145,2]
[353579331,1739933452901,-286.085751,0.000145,2]
[353579332,1739933452910,-286.085751,0.000145,2]
[353579333,1739933452921,-343.242218,0.000145,2]
[353579334,1739933452931,-151.0,0.000145,2]
[353579335,1739933452941,-343.242218,0.000145,2]
[353579336,1739933452951,-151.0,0.000145,2]
[353579337,1739933452960,-1840.013856,0.000145,2]
[353579338,1739933452970,-1840.013856,0.000145,2]
[353579339,1739933452980,-152.309199,0.000145,2]
[353579340,1739933452990,-151.0,0.000145,2]
[353579341,1739933453000,-151.0,0.000145,2]
[353579342,1739933453011,-225.931648,0.000145,2]
[353579343,1739933453020,-225.931648,0.000145,2]
[353579344,1739933453030,-165.428731,0.000145,2]
[353579345,1739933453039,-151.0,0.000145,2]
[353579346,1739933453048,-151.0,0.000145,2]
[353579347,1739933453058,-1347.5751,0.000145,2]
[353579348,1739933453068,-1347.5751,0.000145,2]
[353579349,1739933453078,-407.378973,0.000145,2]
[353579350,1739933453091,-407.378973,0.000145,2]
[353579351,1739933453101,-150.0,0.000145,2]
[353579352,1739933453111,-500.0,0.0001451,2]
[353579353,1739933453121,-500.0,0.00014526,2]
[353579354,1739933453131,-1000.0,0.00014542,2]
[353579355,1739933453141,-1000.0,0.00014544,2]
[353579356,1739933453150,-1410.52,0.00014547,2]
[353579357,1739933453160,-500.0,0.00014553,2]
[353579358,1739933453169,-151.0,0.00014562,2]
[353579359,1739933453179,-151.0,0.00014562,2]
[353579360,1739933453188,-1347.5751,0.00014562,2]
[353579361,1739933453198,-1347.5751,0.00014562,2]
[353579362,1739933453209,-152.0,0.00014562,5]
[353579363,1739933453219,-225.931648,0.00014572,2]
[353579364,1739933453228,-225.931648,0.00014572,2]
[353579365,1739933453238,-407.378973,0.00014572,2]
[353579366,1739933453247,-407.378973,0.00014572,2]
[353579367,1739933453257,-151.0,0.00014573,2]
[353579368,1739933453267,-151.0,0.00014573,2]
[353579369,1739933453277,-500.0,0.00014581,2]
[353579370,1739933453287,-1424.89,0.00014606,2]
[353579371,1739933453296,-500.0,0.00014608,2]
[353579372,1739933453306,-500.0,0.00014635,2]
[353579373,1739933453315,-151.0,0.00014644,2]
[353579374,1739933453324,-152.893491,0.00014644,2]
[353579375,1739933453334,-151.0,0.00014644,2]
[353579376,1739933453343,-151.0,0.00014645,2]
[353579377,1739933453352,-151.0,0.00014645,2]
[353579378,1739933453361,-151.0,0.00014645,2]
[353579379,1739933453370,-151.0,0.00014645,2]
[353579380,1739933453379,-151.0,0.00014645,2]
[353579381,1739933453389,-189.562077,0.00014645,2]
[353579382,1739933453399,-151.277841,0.00014645,2]
[353579383,1739933453408,-189.562077,0.00014645,2]
[353579384,1739933453418,-151.0,0.00014645,2]
[353579385,1739933453427,-151.0,0.00014645,2]
[353579386,1739933453436,-151.0,0.00014645,2]
[353579387,1739933453445,-220.420964,0.00014645,2]
[353579388,1739933453454,-151.0,0.00014645,2]
[353579389,1739933453463,-151.0,0.00014645,2]
[353579390,1739933453472,-151.0,0.00014645,2]
[353579391,1739933453481,-500.0,0.00014647,2]
[353579392,1739933453491,-500.0,0.00014663,2]
[353579393,1739933453501,-500.0,0.0001469,2]
[353579394,1739933453510,-229.519431,0.00014699,2]
[353579395,1739933453521,-229.519431,0.00014699,2]
[353579396,1739933453531,-1840.013856,0.00014699,2]
[353579397,1739933453541,-1840.013856,0.00014699,2]
[353579398,1739933453549,-6080.50863786,0.000147,2]
[353579399,1739933453559,-151.0,0.000147,2]
[353579400,1739933453568,-151.0,0.000147,2]
[353579401,1739933453576,-151.0,0.000147,2]
[353579402,1739933453585,-151.0,0.000147,2]
[353579403,1739933453594,-151.0,0.000147,2]
[353579404,1739933453605,-151.0,0.000147,2]
[353579405,1739933453614,-189.562077,0.000147,2]
[353579406,1739933453624,-189.562077,0.000147,2]
[353579407,1739933453632,-151.0,0.000147,2]
[353579408,1739933453642,-151.0,0.000147,2]
[353579409,1739933453652,-183.052655,0.000147,2]
[353579410,1739933453661,-151.360197,0.000147,2]
[353579411,1739933453670,-183.052655,0.000147,2]
[353579412,1739933453678,-151.0,0.000147,2]
[353579413,1739933453687,-151.0,0.000147,2]
[353579414,1739933453696,-151.0,0.000147,2]
[353579415,1739933453706,-151.0,0.000147,2]
[353579416,1739933453715,-152.376144,0.000147,2]
[353579417,1739933453724,-151.0,0.000147,2]
[353579418,1739933453734,-151.0,0.000147,2]
[353579419,1739933453743,-254.564888,0.000147,2]
[353579420,1739933453752,-1520.924704,0.000147,2]
[353579421,1739933453762,-229.519431,0.000147,2]